[Event "5th Sharjah Masters 2022"]
[Site "Sharjah"]
[Date "2022.05.21"]
[Round "1.15"]
[White "Sargsyan, Shant"]
[Black "Sankalp Gupta"]
[Result "1-0"]
[ECO "E51"]
[WhiteElo "2641"]
[BlackElo "2505"]
[Annotator "TA"]
[PlyCount "81"]
[EventDate "2022.05.21"]
[EventType "swiss"]
[EventCountry "UAE"]
[SourceTitle "playchess.com"]
[Source "ChessBase"]
[SourceQuality "1"]
[TimeControl "5400+30"]

{[%evp 13,81,0,4,0,13,14,25,22,29,-22,-23,-33,0,0,0,0,0,0,0,0,0,0,4,0,0,0,10,-8,-22,-20,0,-16,0,0,70,65,258,255,200,240,264,291,282,272,285,0,31,0,263,277,970,953,977,971,971,971,986,933,1648,1639,1256,1464,1205,1324,29996,29997,29997,29998,29998,29999]} 1. d4 {[%emt 0:01:12]} Nf6 {[%emt 0:00:09]} 2. c4 {[%emt 0:00:16]} e6 {[%emt 0:00:02]} 3. Nf3 {[%emt 0:00:18]} d5 {[%emt 0:00:17]} 4. Nc3 {[%emt 0:00:10]} Bb4 {[%emt 0:00:13]} 5. e3 {[%emt 0:00:35]} O-O {[%emt 0:01:21]} 6. Bd2 {[%emt 0:00:24]} b6 {[%emt 0:12:30]} 7. cxd5 {[%emt 0:00:52]} exd5 {[%emt 0:00:43]} 8. Rc1 {[%emt 0:00:43] E51: Nimzo-Indian: Rubinstein: 4...0-0 5 Nf3 d5.} a6 {[%emt 0:06:27]} 9. Bd3 {[%emt 0:00:58]} Bd6 {[%emt 0:02:42]} 10. O-O {[%emt 0:01:27] White has an edge.} Re8 {[%emt 0:02:04] Against e4} 11. Ne2 {[%emt 0:06:29]} (11. Ne5 $142 $1) 11... Nbd7 $11 {[%emt 0:01:05] [#]} 12. b4 $146 {[%emt 0:07:22]} ({Predecessor:} 12. Ng3 Bb7 13. Qc2 Rc8 14. Rfe1 Ne4 15. Bc3 g6 16. Nd2 f5 17. Qb3 Kh8 18. Ngxe4 fxe4 {½-½ (51) Moreira,R (2088)-Wilson,E (2183) Chess.com INT 2021}) 12... Bb7 {[%emt 0:00:53]} 13. a4 {[%emt 0:01:30]} Ne4 {[%emt 0:00:49]} 14. b5 {[%emt 0:01:39]} axb5 {[%emt 0:06:04]} 15. axb5 {[%emt 0:00:56]} Ra3 {[%emt 0:08:17]} 16. Bc3 {[%emt 0:06:02]} Nxc3 {[%emt 0:02:49]} 17. Rxc3 {[%emt 0:00:23]} Qa8 {[%emt 0:03:37]} 18. Qc1 {[%emt 0:07:34]} Ra5 {[%emt 0:05:35]} 19. Nf4 {[%emt 0:06:22]} g6 {[%emt 0:02:01]} 20. h4 {[%emt 0:04:05]} Qd8 {[%emt 0:03:20]} 21. g3 {[%emt 0:14:19]} Ra7 {[%emt 0:09:01]} 22. Kg2 {[%emt 0:01:35]} Nf6 {[%emt 0:01:02]} 23. h5 {[%emt 0:02:34]} Qd7 {[%emt 0:07:15]} (23... Nxh5 $2 24. Nxh5 gxh5 25. Rh1 $18) (23... Qe7 $11) 24. Rh1 $14 {[%emt 0:02:55][%cal Rh5g6]} Rea8 $2 {[%emt 0:04:35]} ({Black should try} 24... Kg7 $14) 25. hxg6 $18 {[%emt 0:03:35]} hxg6 {[%emt 0:03:28] [#]} 26. Bxg6 $1 {[%emt 0:16:11][%mdl 512]} fxg6 {[%emt 0:00:51]} (26... Ra1 27. Bb1) 27. Rh6 $1 {[%emt 0:00:03]} Ra1 {[%emt 0:04:16]} 28. Rxg6+ {[%emt 0:01:46]} Kh8 {[%emt 0:00:21] [#]} 29. Rh6+ $2 {[%emt 0:01:22]} ({White must play} 29. Rxf6 $1 $18 Rxc1 30. Rxc1) 29... Kg8 {[%emt 0:01:05] [#]} 30. Rg6+ $2 {[%emt 0:01:24]} (30. Rxf6 $1 $14 Rxc1 31. Rxc1 Qxb5 32. Rg6+ Kf8 33. Rh1 Bxf4 34. gxf4) 30... Kh8 $1 {[%emt 0:00:01]} 31. Rxf6 {[%emt 0:00:33] Dancing on a razor blade.} R8a2 $2 {[%emt 0:12:00] [#]} (31... Rxc1 32. Rxc1 Bxf4 33. exf4 Re8) 32. Rxc7 $3 {[%emt 0:07:47][%mdl 512]} Bxc7 {[%emt 0:00:58] [#]} 33. Rf8+ $1 {[%emt 0:00:17]} Kg7 {[%emt 0:00:35] [#]} 34. Qxc7 $3 {[%emt 0:00:14][%mdl 576] Deflection, Decoy} Qxc7 {[%emt 0:00:05]} (34... Rxf2+ 35. Kxf2) 35. Ne6+ {[%emt 0:04:08]} Kh6 {[%emt 0:00:49]} 36. Rf6+ {[%emt 0:00:00]} Kh5 {[%emt 0:00:16]} 37. Nxc7 {[%emt 0:00:00][%mdl 64] Intending Ne6 and mate. Discovered Attack. Pair of Knights!} Bc8 {[%emt 0:00:45]} 38. Nxd5 {[%emt 0:00:00] White threatens Nf4+ and mate.} Bb7 {[%emt 0:00:03]} 39. Nf4+ {[%emt 0:00:00] White mates.} Kg4 {[%emt 0:00:01]} 40. Rg6+ {[%emt 0:00:00]} Kf5 {[%emt 0:00:05]} 41. g4+ {[%emt 0:00:00] Weighted Error Value: White=0.16 (very precise) /Black=0.47} 1-0

[Event "5th Sharjah Masters 2022"]
[Site "Sharjah"]
[Date "2022.05.21"]
[Round "1.16"]
[White "Aditya Mittal"]
[Black "Ter-Sahakyan, Samvel"]
[Result "1/2-1/2"]
[ECO "E05"]
[WhiteElo "2490"]
[BlackElo "2640"]
[Annotator "TA"]
[PlyCount "99"]
[EventDate "2022.05.21"]
[EventType "swiss"]
[EventCountry "UAE"]
[SourceTitle "playchess.com"]
[Source "ChessBase"]
[SourceQuality "1"]
[TimeControl "5400+30"]

{[%evp 21,99,12,18,12,7,4,15,18,26,-6,-11,-9,-12,-22,0,0,20,18,20,18,19,19,17,16,17,21,18,18,18,17,17,17,17,17,18,14,19,14,16,0,14,0,20,11,11,0,20,6,11,9,3,0,0,0,11,-4,0,0,0,-35,-53,-21,-22,-60,-20,-20,0,0,0,0,0,0,0,0,0,0,0,0,0,0]} 1. d4 {[%emt 0:00:15]} Nf6 {[%emt 0:00:36]} 2. c4 {[%emt 0:00:05]} e6 {[%emt 0:00:14]} 3. Nf3 {[%emt 0:00:06]} d5 {[%emt 0:00:14]} 4. g3 {[%emt 0:00:05]} Be7 {[%emt 0:07:37]} 5. Bg2 {[%emt 0:00:05]} O-O {[%emt 0:00:05]} 6. O-O {[%emt 0:00:05]} dxc4 {[%emt 0:00:07]} 7. Qc2 {[%emt 0:00:05]} a6 {[%emt 0:00:14]} 8. a4 {[%emt 0:00:06]} Bd7 {[%emt 0:00:12]} 9. Qxc4 {[%emt 0:00:14]} Bc6 {[%emt 0:00:08]} 10. Bg5 {[%emt 0:00:06]} Nbd7 {[%emt 0:03:19]} 11. Nc3 {[%emt 0:01:22]} h6 {[%emt 0:01:47]} 12. Bxf6 {[%emt 0:00:07] E05: Open Catalan: 5 Nf3 Be7.} Nxf6 {[%emt 0:01:10]} 13. Rfd1 $1 {[%emt 0:00:27][%mdl 4] is more profitable than 13.b4 at the moment.} a5 {[%emt 0:10:28]} 14. Qb3 {[%emt 0:21:19]} Ra6 {[%emt 0:26:05][%cal Ba8a6,Ba6b6,Bb6b4][%mdl 32]} 15. Ne5 {[%emt 0:08:18] [#]} Rb6 $146 {[%emt 0:00:49]} ({Predecessor:} 15... Bxg2 16. Kxg2 Rb6 17. Qc2 Nd5 18. e3 Nb4 19. Qe4 c6 20. Nc4 Ra6 21. h4 Re8 {0-1 (53) Gaehwiler,G (2400)-Moskalenko,A (2514) Chess.com INT 2021}) 16. Qc2 {[%emt 0:00:41]} Bd5 {[%emt 0:03:26]} 17. Rd3 {[%emt 0:06:20]} Rb4 {[%emt 0:05:58]} 18. e3 {[%emt 0:09:23]} c6 {[%emt 0:02:06]} (18... Bb3 $5 {[%cal Rb3c2]} 19. Qe2 Qe8 $11) 19. Na2 {[%emt 0:01:25][%cal Bc3a2,Ba2c1,Bc1d3][%mdl 32] Pair of Knights!} Rb6 {[%emt 0:00:58]} 20. Nc1 {[%emt 0:07:09]} Qc7 {[%emt 0:09:53]} 21. Rd1 {[%emt 0:11:29] Hoping for e4.} Bxg2 {[%emt 0:01:50]} 22. Kxg2 {[%emt 0:00:29]} Nd7 {[%emt 0:03:24]} 23. Nc4 {[%emt 0:07:51][%csl LRa5,LRb6]} Ra6 {[%emt 0:00:06]} 24. Nd3 {[%emt 0:00:07]} Rd8 {[%emt 0:06:00]} 25. Rac1 {[%emt 0:01:05]} Nb6 {[%emt 0:01:48]} 26. Nce5 {[%emt 0:05:26]} Nd5 {[%emt 0:00:13]} 27. h4 {[%emt 0:09:01]} Raa8 {[%emt 0:01:16]} 28. Qb3 {[%emt 0:00:52]} Bd6 {[%emt 0:06:31]} 29. Nc4 {[%emt 0:02:33]} Bf8 {[%emt 0:00:25]} 30. Nce5 {[%emt 0:02:38]} Bd6 {[%emt 0:00:28]} 31. Nc4 {[%emt 0:00:37]} Bf8 {[%emt 0:00:06]} 32. Nd2 {[%emt 0:00:12]} Nb4 {[%emt 0:02:40]} 33. Ne5 {[%emt 0:00:17]} Bd6 {[%emt 0:00:52]} 34. Ndf3 {[%emt 0:01:06]} Bxe5 {[%emt 0:00:57]} 35. Nxe5 {[%emt 0:00:12]} Rd6 {[%emt 0:02:33]} 36. Nc4 {[%emt 0:01:44]} Rd7 {[%emt 0:00:30]} 37. Ne5 {[%emt 0:00:01]} Rd6 {[%emt 0:00:11]} 38. Rc5 {[%emt 0:01:21]} b6 {[%emt 0:01:27]} 39. Rcc1 {[%emt 0:01:40]} c5 {[%emt 0:00:40]} 40. Nc4 {[%emt 0:00:11][%cal Be5c4,Bc4a3,Ba3b5,Bb5d4][%mdl 32]} Rd5 {[%emt 0:00:59]} 41. Kg1 {[%emt 0:01:49]} Rad8 {[%emt 0:00:19][%cal Rc5d4]} 42. Na3 {[%emt 0:00:37]} Qd7 {[%emt 0:02:01][%cal Rc5d4]} 43. Nb5 {[%emt 0:00:01] The position is equal.} cxd4 {[%emt 0:00:24]} 44. Rc7 {[%emt 0:00:49]} Qe8 {[%emt 0:00:07] [#] aiming for ...dxe3.} 45. Rxd4 {[%emt 0:00:10]} Rxd4 {[%emt 0:00:13]} 46. Nxd4 {[%emt 0:00:16]} Rc8 {[%emt 0:00:59]} 47. Qc4 {[%emt 0:02:03]} Rxc7 {[%emt 0:00:04]} 48. Qxc7 {[%emt 0:00:02]} Qxa4 {[%emt 0:00:21]} 49. Qxb6 {[%emt 0:00:17]} Qa1+ {[%emt 0:00:22]} 50. Kg2 {[%emt 0:00:09] Weighted Error Value: White=0.06 (flawless) /Black=0.04 (flawless)} 1/2-1/2

[Event "5th Sharjah Masters 2022"]
[Site "Sharjah"]
[Date "2022.05.21"]
[Round "1.17"]
[White "Petrosyan, Manuel"]
[Black "Davtyan, Artur"]
[Result "1/2-1/2"]
[ECO "D31"]
[WhiteElo "2638"]
[BlackElo "2488"]
[Annotator "TA"]
[PlyCount "83"]
[EventDate "2022.05.21"]
[EventType "swiss"]
[EventCountry "UAE"]
[SourceTitle "playchess.com"]
[Source "ChessBase"]
[SourceQuality "1"]
[TimeControl "5400+30"]

{[%evp 13,83,9,8,4,11,0,18,29,22,25,31,4,16,5,13,18,19,9,45,25,23,7,26,4,31,14,50,56,52,43,62,53,56,47,44,40,52,36,34,47,30,33,34,29,36,18,18,16,25,23,39,35,50,39,43,0,7,7,8,10,10,4,2,0,0,0,0,0,0,0,0,0]} 1. d4 {[%emt 0:00:55]} d5 {[%emt 0:00:23]} 2. c4 {[%emt 0:00:11]} e6 {[%emt 0:00:11]} 3. Nc3 {[%emt 0:00:12]} Be7 {[%emt 0:00:18]} 4. cxd5 {[%emt 0:00:32]} exd5 {[%emt 0:00:07]} 5. Bf4 {[%emt 0:00:04]} c6 {[%emt 0:00:10]} 6. e3 {[%emt 0:00:12]} Bf5 {[%emt 0:00:05]} 7. Nge2 {[%emt 0:00:09]} Nd7 {[%emt 0:00:07]} 8. h4 {[%emt 0:00:14] D31: Queen's Gambit Declined: Semi-Slav without ...Nf6 (+ Marshall Gambit and Noteboom) and Exchange Variation lines without ...Nf6.} Be6 {[%emt 0:00:05]} 9. Ng3 {[%emt 0:00:16]} Ngf6 {[%emt 0:00:08]} 10. Bd3 {[%emt 0:00:43]} O-O {[%emt 0:00:07]} 11. Nf5 {[%emt 0:00:44] [#]} Bb4 $146 {[%emt 0:02:38]} ({Predecessor:} 11... Re8 12. Nxe7+ Qxe7 13. O-O Ne4 14. Bxe4 dxe4 15. Nxe4 Bc4 16. Nd6 Bxf1 17. Nxe8 Rxe8 18. Qxf1 Qxh4 {½-½ (30) Vocaturo,D (2620)-Bacrot,E (2671) Douglas 2019}) 12. a3 {[%emt 0:01:37]} Bxc3+ {[%emt 0:10:15]} 13. bxc3 {[%emt 0:00:06]} Bxf5 {[%emt 0:10:43]} 14. Bxf5 {[%emt 0:00:10]} Re8 {[%emt 0:07:52]} 15. a4 {[%emt 0:08:05]} Nf8 {[%emt 0:02:51]} 16. Qb3 {[%emt 0:14:39]} b6 {[%emt 0:20:41]} 17. h5 {[%emt 0:19:40]} Ne4 {[%emt 0:13:42]} 18. c4 {[%emt 0:03:40]} dxc4 {[%emt 0:14:39]} 19. Qxc4 {[%emt 0:01:23]} Nf6 {[%emt 0:08:27]} (19... Qf6 $5 {[%cal Rf6f5]} 20. Bxe4 Rxe4 $11) 20. O-O {[%emt 0:21:07]} Nxh5 {[%emt 0:00:39]} 21. Bh2 {[%emt 0:00:06] A strong pair of Bishops.} Qg5 {[%emt 0:00:37]} 22. Bh3 {[%emt 0:00:47] White is more active.} c5 {[%emt 0:01:16]} 23. dxc5 {[%emt 0:03:02]} Qxc5 {[%emt 0:01:16]} 24. Qxc5 {[%emt 0:01:13]} bxc5 {[%emt 0:00:01]} 25. Rfc1 {[%emt 0:05:09]} Ne6 $1 {[%emt 0:00:05]} 26. Bxe6 {[%emt 0:04:13][%mdl 64] [#] Remove Defender} Rxe6 {[%emt 0:00:16]} 27. Rxc5 {[%emt 0:00:05]} Nf6 {[%emt 0:00:19]} 28. Rd1 {[%emt 0:01:02]} Rae8 {[%emt 0:03:09]} 29. a5 {[%emt 0:07:01]} h6 {[%emt 0:00:27]} 30. Kf1 {[%emt 0:00:52]} Ne4 {[%emt 0:03:02]} 31. Rc2 {[%emt 0:00:21]} Ra6 {[%emt 0:00:10]} 32. Rd5 {[%emt 0:01:07]} Nf6 {[%emt 0:00:23]} 33. Rb5 {[%emt 0:00:35]} Ng4 {[%emt 0:00:11]} 34. Bg1 {[%emt 0:01:52]} Re5 {[%emt 0:00:59] The position is equal.} 35. Rcc5 {[%emt 0:00:29]} f6 {[%emt 0:00:04]} 36. Ke2 {[%emt 0:00:38] Threatening f4.} Rxc5 {[%emt 0:01:16]} 37. Rxc5 $11 {[%emt 0:00:01] KRB-KRN} Ne5 {[%emt 0:00:05]} 38. f3 {[%emt 0:04:47]} Nc6 {[%emt 0:00:13]} 39. Rc2 {[%emt 0:00:37]} Ne7 {[%emt 0:01:23]} 40. Rc7 {[%emt 0:00:54]} Nc6 {[%emt 0:00:05]} 41. e4 {[%emt 0:00:11]} Nxa5 {[%emt 0:00:07]} 42. Rxa7 {[%emt 0:00:36] Weighted Error Value: White=0.04 (flawless) /Black=0.06 (flawless)} 1/2-1/2

[Event "5th Sharjah Masters 2022"]
[Site "Sharjah"]
[Date "2022.05.21"]
[Round "1.18"]
[White "Gharibyan, Mamikon"]
[Black "Abasov, Nijat"]
[Result "0-1"]
[ECO "E28"]
[WhiteElo "2487"]
[BlackElo "2635"]
[Annotator "TA"]
[PlyCount "88"]
[EventDate "2022.05.21"]
[EventType "swiss"]
[EventCountry "UAE"]
[SourceTitle "playchess.com"]
[Source "ChessBase"]
[SourceQuality "1"]
[TimeControl "5400+30"]

{[%evp 14,88,-23,-17,23,18,16,16,40,40,45,30,51,46,41,0,0,0,0,-36,-8,-34,-34,-25,-24,-16,-10,-11,0,-21,-18,-8,-10,-22,-18,-18,0,0,-10,-28,0,-77,-58,-96,-82,-83,-103,-95,-75,-75,-75,-75,-58,-58,-70,-58,-45,-44,-33,-42,-38,-92,-92,-93,-101,-91,-87,-64,-78,-735,-145,-338,-259,-29971,-29973,-6110,-6095]} 1. d4 {[%emt 0:00:04]} Nf6 {[%emt 0:00:05]} 2. c4 {[%emt 0:00:08]} e6 {[%emt 0:00:08]} 3. Nc3 {[%emt 0:00:11]} Bb4 {[%emt 0:00:31]} 4. e3 {[%emt 0:00:12]} O-O {[%emt 0:00:16]} 5. a3 {[%emt 0:00:17]} Bxc3+ {[%emt 0:00:31]} 6. bxc3 {[%emt 0:00:06]} b6 {[%emt 0:04:33]} 7. Bd3 {[%emt 0:00:30]} Bb7 {[%emt 0:01:46]} 8. f3 {[%emt 0:00:30]} Nh5 {[%emt 0:08:24] 8...c5 gains popularity. E28: Nimzo-Indian: Sämisch: 5...0-0 6 e3.} 9. Nh3 {[%emt 0:10:24]} Qh4+ {[%emt 0:05:51]} 10. Nf2 {[%emt 0:01:55]} f5 {[%emt 0:00:13] The position is equal.} 11. O-O {[%emt 0:07:20]} Nc6 {[%emt 0:09:28]} 12. e4 {[%emt 0:18:16] [#]} Na5 $146 {[%emt 0:10:44]} ({Predecessor:} 12... Nf4 13. Bxf4 Qxf4 14. e5 Ne7 15. Qe2 Qh4 16. Rad1 Ng6 17. Nh3 Nf4 18. Nxf4 Qxf4 {0-1 (32) Santos,M (2416)-Delgado Ramirez,N (2523) Sao Paulo 2006}) 13. exf5 {[%emt 0:06:12]} exf5 {[%emt 0:00:21]} 14. Nh3 {[%emt 0:06:29] Bg5 is the strong threat.} h6 {[%emt 0:03:02] Prevents Bg5.} 15. Qc2 {[%emt 0:08:53]} Qf6 {[%emt 0:06:10]} 16. Re1 {[%emt 0:15:27]} d6 {[%emt 0:06:32] Prevents Re5.} (16... Ba6 {looks sharper.} 17. Re5 Bxc4 18. Bxf5 Rae8) 17. d5 {[%emt 0:08:25] Black must now prevent Re6.} Qf7 {[%emt 0:03:01]} 18. Nf4 {[%emt 0:09:46]} Nxf4 {[%emt 0:02:15]} 19. Bxf4 {[%emt 0:00:02]} Rad8 {[%emt 0:00:56]} 20. Re2 {[%emt 0:03:47]} Bc8 {[%emt 0:02:43]} 21. c5 {[%emt 0:01:03]} Qxd5 {[%emt 0:01:30]} 22. cxd6 {[%emt 0:00:21]} cxd6 {[%emt 0:00:03]} 23. Rae1 {[%emt 0:01:03]} Bd7 {[%emt 0:01:51]} 24. h4 {[%emt 0:00:35]} Bb5 {[%emt 0:01:58]} 25. Bxb5 {[%emt 0:00:11]} Qxb5 {[%emt 0:00:05]} 26. Re6 {[%emt 0:00:50]} Rfe8 {[%emt 0:02:45] aiming for ...Rxe6.} 27. a4 {[%emt 0:00:31]} ({But not} 27. Bxd6 $2 Rxe6 28. Rxe6 Qd5 $19) (27. Qa2 $11 {remains equal.} d5 28. Rxe8+ Rxe8 29. Rxe8+ Qxe8 30. Qxd5+ Qf7 31. Qd3) 27... Qc5+ $17 {[%emt 0:00:37]} 28. Be3 {[%emt 0:00:31]} Qc4 {[%emt 0:04:42]} 29. Rxe8+ {[%emt 0:00:23]} Rxe8 {[%emt 0:00:05]} 30. Qxf5 {[%emt 0:00:37]} Qxh4 {[%emt 0:02:19]} 31. Qd5+ {[%emt 0:00:14]} Kh8 {[%emt 0:00:30] The board is on fire.} 32. Qd1 {[%emt 0:00:10]} Nc6 {[%emt 0:05:39] Black is more active.} 33. Bf2 {[%emt 0:00:18]} Rxe1+ {[%emt 0:00:12]} 34. Bxe1 $15 {[%emt 0:00:44][%mdl 4096] Endgame KQB-KQN} Qf4 {[%emt 0:01:13]} 35. Bf2 {[%emt 0:00:50]} Ne5 {[%emt 0:00:13]} 36. Qd5 {[%emt 0:00:43]} Kh7 {[%emt 0:03:41]} 37. a5 {[%emt 0:00:27]} (37. Bd4 $15) 37... bxa5 $17 {[%emt 0:02:33]} 38. Qxa5 {[%emt 0:00:10] [#]} Qg5 $1 {[%emt 0:00:50] Threatens to win with ...Nxf3+.} 39. Qd5 {[%emt 0:00:53]} a5 {[%emt 0:00:06] Hoping for ...a4.} 40. Kf1 {[%emt 0:00:30]} Ng6 {[%emt 0:05:50]} 41. Qxd6 {[%emt 0:00:25][%mdl 8192]} (41. Qxg5 $17 hxg5 42. c4) 41... a4 $2 {[%emt 0:00:22]} (41... Qc1+ $19 42. Be1 a4) 42. Bd4 $2 {[%emt 0:00:36]} (42. g3 $17 {is a better defense.}) 42... Nf4 {[%emt 0:00:25]} 43. g4 {[%emt 0:00:24] [#]} (43. Ke1 $19) 43... Qb5+ {[%emt 0:00:16]} 44. Kg1 {[%emt 0:00:35]} Qb1+ {[%emt 0:00:08] Weighted Error Value: White=0.46/Black=0.31} 0-1

[Event "5th Sharjah Masters 2022"]
[Site "Sharjah"]
[Date "2022.05.21"]
[Round "1.19"]
[White "Idani, Pouya"]
[Black "Ortega Amarelle, Mariano"]
[Result "1-0"]
[ECO "C42"]
[WhiteElo "2635"]
[BlackElo "2476"]
[Annotator "TA"]
[PlyCount "59"]
[EventDate "2022.05.21"]
[EventType "swiss"]
[EventCountry "UAE"]
[SourceTitle "playchess.com"]
[Source "ChessBase"]
[SourceQuality "1"]
[TimeControl "5400+30"]

{[%evp 10,59,4,0,15,11,29,29,53,10,10,6,13,20,17,-4,0,0,6,1,0,3,12,-7,0,0,66,54,65,54,83,85,80,75,85,60,61,67,90,0,0,0,172,172,177,170,843,836,834,819,762,750]} 1. e4 {[%emt 0:00:02]} e5 {[%emt 0:00:20]} 2. Nf3 {[%emt 0:00:19]} Nf6 {[%emt 0:00:11]} 3. Nxe5 {[%emt 0:02:59]} d6 {[%emt 0:00:22]} 4. Nc4 {[%emt 0:01:52]} Nxe4 {[%emt 0:01:22]} 5. Qe2 {[%emt 0:00:03]} Qe7 {[%emt 0:01:31]} 6. Ne3 {[%emt 0:00:05]} c6 {[%emt 0:17:50] Prevents Nd5. C42: Petroff Defence: 3 Nxe5 and unusual White 3rd moves.} 7. b3 {[%emt 0:01:35]} Qe5 {[%emt 0:06:29]} 8. c3 $1 {[%emt 0:00:30]} ({But not} 8. Nc4 $2 Qxa1 9. Qxe4+ Be6 $19) 8... d5 {[%emt 0:00:55] White has an edge.} 9. g3 {[%emt 0:05:10]} (9. d4 $5 {[%cal Rd4e5]} Qe6 10. Qc2 $11 (10. f3 Nf6 $11)) 9... Bd6 {[%emt 0:06:49]} 10. Bg2 {[%emt 0:02:20]} O-O {[%emt 0:00:28]} 11. O-O {[%emt 0:00:04] [#]} Na6 $146 {[%emt 0:08:10]} ({Predecessor:} 11... f5 12. f4 Qe7 13. d3 Nc5 14. Nd2 Nbd7 15. Re1 Nf6 16. Nf3 Bd7 17. Qc2 Qd8 {½-½ (35) Rapport,R (2696)-Landa,K (2611) Karlsruhe 2017}) 12. Ba3 {[%emt 0:04:14]} Bxa3 {[%emt 0:01:29]} 13. Nxa3 {[%emt 0:00:06][%cal Bb1a3,Ba3c2,Bc2b4,Bb4c6,Bc6e5,Be5c4][%mdl 32]} Re8 {[%emt 0:00:27]} 14. Nac2 {[%emt 0:03:41]} Nc7 {[%emt 0:06:48]} 15. Rae1 {[%emt 0:04:40][%cal Oe3d5]} Qf6 {[%emt 0:13:57]} 16. f4 {[%emt 0:10:45]} b6 {[%emt 0:04:08]} 17. c4 {[%emt 0:14:47]} Nd6 {[%emt 0:13:18]} ({Black should play} 17... Qd6 $11) 18. Nb4 $1 $14 {[%emt 0:09:05]} ({Much weaker is} 18. cxd5 Ba6 19. d3 Nxd5 $11) 18... Bb7 {[%emt 0:02:22]} 19. cxd5 {[%emt 0:06:18]} c5 {[%emt 0:09:15]} 20. Nc6 {[%emt 0:02:30]} Ba6 {[%emt 0:02:17]} 21. d3 {[%emt 0:00:34]} Qc3 {[%emt 0:00:10] Against Qd2} 22. Ne5 {[%emt 0:02:25]} f6 {[%emt 0:00:20]} 23. N5c4 {[%emt 0:01:25]} Rad8 {[%emt 0:01:03]} 24. Qd1 {[%emt 0:11:31]} (24. Qf2 $16 {Strongly threatening Nxd6.} Qxd3 25. Rd1) 24... Qd4 $11 {[%emt 0:01:17] aiming for ...Nf5.} 25. Kh1 {[%emt 0:00:05] Nxd6 is the strong threat.} Nxc4 {[%emt 0:01:00] [#]} (25... Bxc4 $11 {and Black stays safe.} 26. Nxc4 Rxe1 27. Qxe1 Nc8) 26. Nf5 $1 $18 {[%emt 0:00:05]} ({And not} 26. Nxc4 Nxd5 27. Qh5 Ne3 28. Nxe3 Rxe3 29. Rxe3 Qxe3 30. Bd5+ Kh8 $15) 26... Ne3 {[%emt 0:00:33]} (26... Rxe1 $2 27. Qxe1 Ne3 28. Nxd4 $18) 27. Rxe3 {[%emt 0:00:07]} Qc3 $2 {[%emt 0:00:19]} (27... Qxe3 28. Nxe3 Rxe3) 28. d6 {[%emt 0:05:37][%cal Bd5d6,Bd6c7][%mdl 32] White is clearly winning.} Rxe3 {[%emt 0:00:38]} 29. dxc7 {[%emt 0:12:06]} Rdxd3 {[%emt 0:00:11]} 30. Qg4 {[%emt 0:00:00] Weighted Error Value: White=0.08 (flawless) /Black=0.25 (precise)} 1-0